[Event "36th German Seniors-ch-65 2024"]
[Site "Bad Wildungen"]
[Date "2024.08.27"]
[Round "5.16"]
[White "Polster, Wolfgang"]
[Black "Vasiljev, Jurij"]
[Result "0-1"]
[ECO "B50"]
[WhiteElo "2112"]
[BlackElo "1993"]
[Annotator "TA"]
[PlyCount "70"]
[EventDate "2024.08.22"]
[EventType "swiss"]
[EventCountry "GER"]
[SourceTitle "playchess.com"]
[Source "ChessBase"]
[SourceQuality "1"]
[TimeControl "40/5400+30:1800+30"]

{[%evp 14,70,-4,-7,0,-6,-6,-16,-15,-8,24,2,47,42,52,62,70,17,20,18,65,86,79,72,70,70,98,7,5,11,23,0,31,0,50,-14,28,15,26,-85,-72,-150,-100,-193,-202,-182,-166,-192,-188,-164,-94,-227,-130,-123,-126,-126,-100,-399,-399]} 1. e4 {[%emt 0:00:28]} c5 {[%emt 0:00:31]} 2. Nf3 {[%emt 0:00:55]} d6 {[%emt 0:00:22]} 3. c3 {[%emt 0:02:06]} Nf6 {[%emt 0:00:40]} 4. Be2 {[%emt 0:01:54]} Nc6 {[%emt 0:01:53]} 5. d3 {[%emt 0:01:38]} g6 {[%emt 0:01:08]} 6. O-O {[%emt 0:00:39]} Bg7 {[%emt 0:00:20]} 7. h3 {[%emt 0:02:59]} O-O {[%emt 0:00:56]} 8. Be3 $1 {[%emt 0:00:36]} h6 {[%emt 0:05:08]} 9. Nbd2 {[%emt 0:07:10]} e5 {[%emt 0:03:55]} 10. a3 {[%emt 0:06:44]} a5 {[%emt 0:01:56] The position is equal.} 11. a4 {[%emt 0:07:05]} Nh7 {[%emt 0:05:04]} 12. Nh2 {[%emt 0:05:40]} f5 {[%emt 0:08:50]} 13. exf5 {[%emt 0:02:21]} gxf5 {[%emt 0:00:18]} 14. f4 {[%emt 0:00:16]} Kh8 {[%emt 0:02:15]} 15. Bf3 {[%emt 0:06:52]} (15. fxe5 $14 Qe7 16. d4) 15... exf4 $11 {[%emt 0:03:05]} 16. Bxf4 {[%emt 0:00:08]} Ne5 {[%emt 0:00:10]} (16... d5 $11) 17. Nc4 $14 {[%emt 0:01:45]} Be6 {[%emt 0:02:07]} 18. Re1 {[%emt 0:03:40][%cal Rf4e5]} Bxc4 {[%emt 0:01:58]} 19. dxc4 {[%emt 0:00:16]} Nxc4 {[%emt 0:01:50] [#]} 20. Qc2 {[%emt 0:08:33]} (20. Bd5 $1 $16 {[%cal Rd5c4]} Ne5 21. Nf3 (21. Bxb7 Rb8 $15)) 20... Qb6 $11 {[%emt 0:01:23]} 21. Re2 {[%emt 0:05:29]} Ne5 {[%emt 0:00:38]} 22. Rd1 {[%emt 0:02:15][%mdl 1024] White has compensation.} Rad8 {[%emt 0:06:20]} 23. Bd5 {[%emt 0:11:43]} c4+ {[%emt 0:09:51]} (23... Nf6 $11) 24. Kh1 {[%emt 0:01:07]} (24. Be3 $14 Qc7 25. Qd2) 24... Nd3 {[%emt 0:00:42]} (24... Nf6 $5) 25. Be3 {[%emt 0:00:26] This pair of bishops is nice.} Qc7 {[%emt 0:00:14]} 26. Qd2 {[%emt 0:05:00]} (26. b3 $11 {remains equal.}) 26... Nf6 {[%emt 0:04:03]} 27. Bf3 {[%emt 0:04:25]} (27. Bxc4 $142 Nxb2 28. Qxb2 Qxc4 29. Bd4) 27... Kh7 {[%emt 0:03:08] Black is more active.} (27... d5 $142 {Threatens to win with ...Ne4.} 28. Bd4 Kh7) 28. Qc2 {[%emt 0:02:46]} (28. b3 $17) 28... Ne4 $19 {[%emt 0:01:24]} 29. Nf1 {[%emt 0:00:13]} d5 $36 {[%emt 0:01:28][%mdl 2048] Black is on the roll.} 30. Rxd3 {[%emt 0:00:37]} cxd3 {[%emt 0:00:15]} 31. Qxd3 {[%emt 0:00:05]} Qc4 {[%emt 0:01:16]} ({Black should play} 31... Qc6 $19 32. Qd1 b5 33. axb5 Qxb5) 32. Qd1 {[%emt 0:01:22]} (32. Qxc4 $17 {was the only defense.} dxc4 33. Bxe4 fxe4 34. Nd2) 32... f4 {[%emt 0:07:48]} (32... d4 $19 33. cxd4 Bxd4) 33. Bb6 $17 {[%emt 0:01:50]} Ra8 {[%emt 0:03:14][%cal Bd8a8,Ba8a6,Ba6b6][%mdl 32]} 34. Re1 {[%emt 0:02:39]} Ra6 {[%emt 0:05:31]} 35. Be2 $2 {[%emt 0:00:42][%mdl 8192] [#]} (35. Bg1 $17) 35... Rxb6 $1 {[%emt 0:18:19] Weighted Error Value: White=0.50/Black=0.24 (precise) .  Loses game:     	White=1     	---        Mistake:       	White=7     	Black=5      Inaccurate:     	White=1     	Black=5      OK:         	White=6     	Black=8      Best:        	White=2     	Black=1} 0-1

[Event "36th German Seniors-ch-65 2024"]
[Site "Bad Wildungen"]
[Date "2024.08.27"]
[Round "5.17"]
[White "Kuempers, Ulrich"]
[Black "Schulz, Michael"]
[Result "1-0"]
[ECO "A87"]
[WhiteElo "1991"]
[BlackElo "2109"]
[Annotator "TA"]
[PlyCount "109"]
[EventDate "2024.08.22"]
[EventType "swiss"]
[EventCountry "GER"]
[SourceTitle "playchess.com"]
[Source "ChessBase"]
[SourceQuality "1"]
[TimeControl "40/5400+30:1800+30"]

{[%evp 16,109,27,29,72,35,63,44,53,33,75,77,66,66,104,100,94,97,95,102,118,111,140,126,145,116,211,201,231,220,230,182,195,196,187,183,183,188,196,199,228,235,293,302,363,365,339,341,325,332,322,322,375,297,469,469,462,443,457,453,475,442,735,708,1093,1085,1469,1447,1698,1698,3255,1753,4939,4066,29984,29985,29983,29984,29984,29985,29985,29986,29987,29985,29993,29982,29991,29989,29989,29990,29990,29991,29991,29992,29992,29993]} 1. d4 {[%emt 0:00:06]} f5 {[%emt 0:00:10]} 2. Nf3 {[%emt 0:00:18]} Nf6 {[%emt 0:00:06]} 3. c4 {[%emt 0:00:30]} g6 {[%emt 0:00:11]} 4. g3 {[%emt 0:00:27]} Bg7 {[%emt 0:00:06]} 5. Bg2 {[%emt 0:00:14]} O-O {[%emt 0:00:09]} 6. O-O {[%emt 0:00:08]} d6 {[%emt 0:00:06]} 7. Nc3 {[%emt 0:00:31]} Qe8 {[%emt 0:00:08]} 8. d5 {[%emt 0:00:40]} Na6 {[%emt 0:02:09]} 9. Be3 {[%emt 0:07:50]} b6 {[%emt 0:06:02]} 10. Qd2 {[%emt 0:09:51]} Bd7 {[%emt 0:06:12]} 11. Ng5 {[%emt 0:09:33]} Rc8 {[%emt 0:03:31] White is slightly better.} 12. Rad1 {[%emt 0:07:31]} Nc5 {[%emt 0:05:07]} 13. b4 {[%emt 0:01:53]} Nb7 {[%emt 0:00:37]} 14. Rc1 {[%emt 0:10:11]} Nd8 {[%emt 0:15:01] White stays focused until the end.} 15. c5 {[%emt 0:02:16]} bxc5 {[%emt 0:02:38]} 16. bxc5 {[%emt 0:00:03]} dxc5 {[%emt 0:00:18]} 17. Bxc5 {[%emt 0:02:32]} h6 {[%emt 0:00:26]} 18. Nf3 {[%emt 0:02:39] White has more active pieces. The black rooks are passive.} Nb7 {[%emt 0:00:31]} 19. Bxa7 {[%emt 0:01:57]} Nd6 {[%emt 0:00:11]} 20. Bd4 {[%emt 0:01:31]} Nde4 {[%emt 0:07:36]} (20... c5 $16 {was necessary.}) 21. Nxe4 $18 {[%emt 0:03:34]} fxe4 {[%emt 0:04:33]} 22. Ne5 {[%emt 0:02:21]} Bf5 {[%emt 0:05:14]} 23. g4 {[%emt 0:03:44]} Nxg4 {[%emt 0:05:42]} 24. Nxg4 {[%emt 0:00:40]} Bxg4 {[%emt 0:00:19]} 25. Bxg7 {[%emt 0:00:19]} Kxg7 {[%emt 0:00:05]} 26. Qd4+ {[%emt 0:03:18]} Rf6 {[%emt 0:00:38]} 27. Qxe4 {[%emt 0:01:33]} h5 {[%emt 0:03:46]} 28. Qe5 {[%emt 0:05:09]} Qd7 {[%emt 0:02:59]} 29. f3 {[%emt 0:02:27]} Bf5 {[%emt 0:00:39]} 30. e4 {[%emt 0:05:02]} Bh3 {[%emt 0:00:09]} 31. Bxh3 {[%emt 0:00:44]} Qxh3 {[%emt 0:00:04]} 32. Qxe7+ {[%emt 0:00:15]} Rf7 {[%emt 0:00:04]} 33. Qe5+ {[%emt 0:00:28]} Kh7 {[%emt 0:00:27]} 34. Qg3 {[%emt 0:03:43]} Qd7 {[%emt 0:00:09]} (34... Qxg3+ {might work better.} 35. hxg3 Ra8) 35. Rc6 {[%emt 0:00:22]} Rg8 {[%emt 0:01:46]} 36. Rfc1 {[%emt 0:01:23]} Rgg7 {[%emt 0:00:09]} 37. a4 {[%emt 0:03:15]} (37. Rxc7 Qb5 $18) 37... Qd8 {[%emt 0:02:26]} 38. a5 {[%emt 0:01:06]} g5 {[%emt 0:00:35]} (38... Qf8 $142 39. Rf1 (39. Rxc7 Rxf3 40. Rxg7+ Kxg7 $18) 39... Rf6 40. Rxc7 Rxc7) 39. a6 {[%emt 0:03:06] [#] Black must now prevent a7.} g4 {[%emt 0:01:05][%cal Bg5g4,Bg4g3][%mdl 32]} 40. f4 {[%emt 0:02:16][%cal Bf3f4,Bf4f5,Bf5f6][%mdl 32]} h4 {[%emt 0:00:15]} 41. Qe3 {[%emt 0:32:13]} g3 {[%emt 0:31:00]} 42. h3 {[%emt 0:01:42]} g2 {[%emt 0:01:42]} 43. f5 {[%emt 0:01:34] [#] Threatening mate with a7.} Rf6 {[%emt 0:03:30]} 44. a7 {[%emt 0:00:00] Rxf6 would kill now.} Rxc6 {[%emt 0:00:00]} 45. Rxc6 {[%emt 0:00:00] KQR-KQR. White mates.} Qa8 {[%emt 0:00:00]} 46. f6 {[%emt 0:00:00]} Rf7 {[%emt 0:00:00]} 47. e5 {[%emt 0:00:00]} Qb7 {[%emt 0:00:00]} 48. Qe4+ {[%emt 0:00:00]} Kg8 {[%emt 0:00:00]} 49. Qg4+ {[%emt 0:00:00]} Kf8 {[%emt 0:00:00]} 50. Qd4 {[%emt 0:00:09]} Rh7 {[%emt 0:00:00]} 51. Qb4+ {[%emt 0:01:58]} Qxb4 {[%emt 0:00:00]} 52. a8=Q+ {[%emt 0:00:05]} (52. a8=B Qe1+ 53. Kxg2 Rh5 (53... Qxe5 $2 54. d6 $19) 54. Rxc7 Rg5+ (54... Qxe5 {is a self mate.} 55. Rc8+ Kf7 56. d6 Qg3+ 57. Kh1 Rg5 58. Bd5+ Kxf6 59. Rf8+ Ke5 60. Re8+ Kxd5 61. Re5+ Kxe5 62. d7 Qxh3#) 55. Kf3 Rf5+ 56. Kg4 Qe4#) 52... Kf7 {[%emt 0:00:00]} 53. Rxc7+ {[%emt 0:00:06]} Kg6 {[%emt 0:00:00]} 54. Qg8+ {[%emt 0:00:14]} Kf5 {[%emt 0:00:00]} 55. Qxh7+ {[%emt 0:00:09] Weighted Error Value: White=0.12 (very precise) /Black=0.37.  Mistake:       	---       	Black=3      Inaccurate:     	White=1     	Black=4      OK:         	White=15    	Black=5      Best:        	White=2     	Black=1} ({Inferior is} 55. Rxh7 Qe1+ 56. Kxg2 Qe2+ 57. Kh1 Qf1+ 58. Kh2 Qf4+ 59. Kg1 Qe3+ 60. Kh1 Qxh3+ 61. Kg1 Qe3+ 62. Kh2 Qf4+ 63. Kg2 Qe4+ 64. Kh2 Qf4+ 65. Kg2 Qe4+ 66. Kh2 Qf4+ $11) 1-0

[Event "36th German Seniors-ch-65 2024"]
[Site "Bad Wildungen"]
[Date "2024.08.27"]
[Round "5.18"]
[White "Krueger, Erich"]
[Black "Roettinger, Eugen"]
[Result "1-0"]
[ECO "D35"]
[WhiteElo "2085"]
[BlackElo "1990"]
[Annotator "TA"]
[PlyCount "69"]
[EventDate "2024.08.22"]
[EventType "swiss"]
[EventCountry "GER"]
[SourceTitle "playchess.com"]
[Source "ChessBase"]
[SourceQuality "1"]
[TimeControl "40/5400+30:1800+30"]

{[%evp 14,69,50,45,56,39,59,40,47,39,44,43,41,37,40,22,39,28,29,27,33,30,39,34,29,13,25,23,38,-12,-20,-17,105,106,102,99,103,8,4,6,135,139,261,188,298,302,291,270,302,260,413,395,484,455,470,463,630,605]} 1. d4 {[%emt 0:00:27]} d5 {[%emt 0:00:34]} 2. c4 {[%emt 0:00:08]} e6 {[%emt 0:00:04]} 3. Nc3 {[%emt 0:00:08]} Nf6 {[%emt 0:00:05]} 4. cxd5 {[%emt 0:00:15]} exd5 {[%emt 0:00:05]} 5. Bg5 {[%emt 0:00:09]} Be7 {[%emt 0:00:04]} 6. e3 {[%emt 0:00:29]} c6 {[%emt 0:01:29]} 7. Bd3 {[%emt 0:00:31]} Ne4 {[%emt 0:06:16]} 8. Bf4 {[%emt 0:02:02]} (8. Bxe4 Bxg5 9. Bd3 Nd7 $11) (8. Nxe4 dxe4 9. Bxe7 Qxe7 $11) 8... Nxc3 {[%emt 0:01:58]} 9. bxc3 {[%emt 0:00:10]} Nd7 {[%emt 0:00:07]} 10. Nf3 {[%emt 0:01:30]} Nf6 {[%emt 0:00:16] White is slightly better.} 11. h3 {[%emt 0:01:33]} Bd6 {[%emt 0:03:39]} 12. Bxd6 {[%emt 0:02:13]} Qxd6 {[%emt 0:00:08]} 13. O-O {[%emt 0:00:12]} O-O {[%emt 0:02:46]} 14. Qc2 {[%emt 0:00:46]} Re8 {[%emt 0:02:20]} 15. Rab1 {[%emt 0:05:52]} b6 {[%emt 0:02:18]} 16. c4 {[%emt 0:07:15]} dxc4 {[%emt 0:03:57]} 17. Bxc4 {[%emt 0:01:31]} Be6 {[%emt 0:01:34]} 18. Rfc1 {[%emt 0:05:08]} Rac8 {[%emt 0:00:25]} 19. Bd3 {[%emt 0:10:40]} g6 {[%emt 0:19:35]} 20. e4 {[%emt 0:05:47] Strongly threatening e5.} (20. Qb2 $5) 20... Qf4 {[%emt 0:02:40]} 21. Qe2 {[%emt 0:04:26] [#]} (21. Qd2 $14 Qxd2 22. Nxd2) 21... Bd5 $1 $11 {[%emt 0:12:42]} 22. g3 {[%emt 0:03:13]} Qh6 {[%emt 0:05:19]} (22... Qd6 $11 23. e5 (23. Ne5 Be6 $11) 23... Qd7) 23. Ne5 $16 {[%emt 0:05:30]} Be6 {[%emt 0:00:22]} 24. Qf3 $36 {[%emt 0:01:32][%mdl 2048] White has strong initiative.} (24. Nxc6 Bd7 (24... Bxh3 25. Qf3 $16) (24... Bd5 $2 25. Ne7+ Rxe7 26. Rxc8+ $18) 25. Qf3 Rxc6 $17) 24... Kg7 {[%emt 0:00:19]} 25. Rxc6 {[%emt 0:12:52] White is more active.} (25. Nxc6 Qxh3 26. Ba6 (26. Nxa7 Rxc1+ 27. Rxc1 Bg4 $11) 26... Nxe4) (25. g4 $16) 25... Rxc6 $11 {[%emt 0:05:52]} 26. Nxc6 {[%emt 0:00:12] And now e5 would win.} Bxh3 {[%emt 0:00:07]} (26... Qxh3 $11 {keeps the balance.} 27. Ne5 (27. Nxa7 Ng4 $11) 27... Ng4) 27. e5 $1 $16 {[%emt 0:05:00]} (27. Nxa7 Bg4 28. Qe3 Qxe3 29. fxe3 Ra8 $15 (29... Nxe4 30. Bxe4 Rxe4 31. Rb3 $17)) 27... Nh5 {[%emt 0:03:05]} (27... Nd7 $16 28. Bc4 (28. Nxa7 f6 $16) 28... Bf5) 28. Bc4 {[%emt 0:03:32]} Rf8 {[%emt 0:00:41]} (28... Bf5 $142) 29. d5 {[%emt 0:03:19]} Qg5 {[%emt 0:00:35]} 30. Re1 {[%emt 0:06:15]} ({Weaker is} 30. Nxa7 Qxe5 31. Nc6 (31. Rxb6 Qd4 $11) 31... Qd6 $16) 30... Qd2 {[%emt 0:04:53]} 31. Qe3 {[%emt 0:02:36]} Qc2 {[%emt 0:00:29]} (31... Qxe3 $142 32. Rxe3 Re8) 32. Bb3 {[%emt 0:00:39]} Qb2 {[%emt 0:00:17]} 33. Nxa7 {[%emt 0:00:44] White is clearly winning.} Bd7 {[%emt 0:13:12]} 34. Nc6 {[%emt 0:01:53]} Qa3 {[%emt 0:04:18]} 35. Qxb6 {[%emt 0:01:51] Weighted Error Value: White=0.18 (very precise) /Black=0.49.  Mistake:       	White=2     	Black=5      Inaccurate:     	---       	Black=1      OK:         	White=4     	Black=6      Best:        	White=2     	---        Strong:       	White=1     	---} 1-0

[Event "36th German Seniors-ch-65 2024"]
[Site "Bad Wildungen"]
[Date "2024.08.27"]
[Round "5.19"]
[White "Wuest, Michael"]
[Black "Wenner, Tobias"]
[Result "1/2-1/2"]
[ECO "B24"]
[WhiteElo "1932"]
[BlackElo "2067"]
[Annotator "TA"]
[PlyCount "70"]
[EventDate "2024.08.22"]
[EventType "swiss"]
[EventCountry "GER"]
[SourceTitle "playchess.com"]
[Source "ChessBase"]
[SourceQuality "1"]
[TimeControl "40/5400+30:1800+30"]

{[%evp 10,70,5,-41,-44,-28,-13,-28,-26,-27,-23,-25,-25,-22,-22,-72,-54,-68,-51,-74,-54,-66,-59,-76,-27,-35,-7,-4,-31,-60,-48,-45,0,-53,0,-72,0,0,0,0,0,0,15,15,61,9,246,189,134,22,12,20,43,43,64,5,2,3,2,2,23,22,82]} 1. e4 {[%emt 0:00:01]} c5 {[%emt 0:00:06]} 2. Nc3 {[%emt 0:00:12]} e6 {[%emt 0:00:10]} 3. d3 {[%emt 0:00:32]} Nc6 {[%emt 0:01:59]} 4. g3 {[%emt 0:00:31]} Nf6 {[%emt 0:01:02]} 5. Bg2 {[%emt 0:00:31]} d5 {[%emt 0:00:33]} 6. Nge2 {[%emt 0:03:41]} (6. f4 $11) 6... d4 $15 {[%emt 0:08:46]} 7. Nb1 {[%emt 0:01:48]} Rb8 {[%emt 0:03:19]} 8. a4 {[%emt 0:02:20]} a6 {[%emt 0:00:16] Black has an edge.} 9. O-O {[%emt 0:02:47]} Be7 {[%emt 0:06:23]} 10. h3 {[%emt 0:02:56]} O-O {[%emt 0:04:27]} 11. f4 {[%emt 0:02:09]} e5 {[%emt 0:04:46]} 12. f5 {[%emt 0:03:48]} (12. Nd2 $11 {keeps the balance.}) 12... h6 {[%emt 0:00:38]} 13. Nd2 {[%emt 0:06:17]} Bd7 {[%emt 0:03:49]} 14. Nf3 {[%emt 0:04:03]} b5 {[%emt 0:00:49]} 15. axb5 {[%emt 0:00:33]} axb5 {[%emt 0:00:03]} 16. g4 {[%emt 0:05:45]} Nh7 {[%emt 0:00:52]} ({Better is} 16... c4 $17) 17. Ng3 {[%emt 0:01:58]} Ng5 {[%emt 0:11:57]} 18. Nh5 $1 {[%emt 0:04:49][%cal Of5f6]} Nxf3+ {[%emt 0:03:32]} 19. Qxf3 {[%emt 0:02:05] [#] Threatens to win with f6.} f6 $1 {[%emt 0:02:43]} 20. h4 {[%emt 0:06:15]} Ra8 {[%emt 0:02:45]} 21. Bd2 {[%emt 0:02:36]} (21. Rxa8 $11 Qxa8 22. g5 fxg5 23. hxg5 hxg5 24. Bh3) 21... Be8 {[%emt 0:04:17]} (21... Rxa1 $15 22. Rxa1 Be8) 22. Ng3 {[%emt 0:02:25]} (22. Rxa8 $11 Qxa8 23. Rb1) 22... Bf7 {[%emt 0:01:06]} (22... c4 $17) 23. Rxa8 $11 {[%emt 0:03:26]} Qxa8 {[%emt 0:00:02]} 24. g5 $1 {[%emt 0:02:29]} fxg5 {[%emt 0:00:40]} 25. hxg5 {[%emt 0:03:04]} hxg5 {[%emt 0:00:18]} 26. Qg4 {[%emt 0:02:02]} Qd8 {[%emt 0:01:06]} (26... Be8 $11 {might be stronger.}) 27. Kf2 {[%emt 0:04:08]} ({White should try} 27. Bf3 $14) 27... g6 $2 {[%emt 0:02:03]} (27... Qd6 $11 {and Black has nothing to worry.}) 28. Rh1 {[%emt 0:03:42] White threatens Qh3 and mate.} Kg7 {[%emt 0:00:21] [#]} 29. Ke2 {[%emt 0:01:06] White is more active.} (29. fxg6 $1 $16 {Nf5+ would kill now.} Bxg6+ 30. Nf5+ Kf7 31. Ra1) 29... Rh8 {[%emt 0:04:51]} 30. fxg6 {[%emt 0:02:32]} Bxg6 {[%emt 0:01:04]} 31. Rxh8 {[%emt 0:04:16]} Kxh8 {[%emt 0:00:09]} 32. Qe6 {[%emt 0:02:12]} (32. Nf5 $14) 32... Qd6 {[%emt 0:07:29]} 33. Qxd6 {[%emt 0:00:32]} Bxd6 {[%emt 0:00:03]} 34. Bxg5 {[%emt 0:00:57]} Ne7 {[%emt 0:01:50]} 35. Bh3 {[%emt 0:01:36]} Kg7 {[%emt 0:23:46] Weighted Error Value: White=0.25 (precise) /Black=0.32.  Loses game:     	---       	Black=1      Mistake:       	White=6     	Black=5      Inaccurate:     	White=1     	Black=2      OK:         	White=11    	Black=5      Best:        	White=1     	Black=2      Strong:       	White=2     	Black=1} (35... Be8 $1 $11) 1/2-1/2

[Event "36th German Seniors-ch-65 2024"]
[Site "Bad Wildungen"]
[Date "2024.08.27"]
[Round "5.20"]
[White "Ruether, Rudolf"]
[Black "Scharff, Klaus"]
[Result "1-0"]
[ECO "A40"]
[WhiteElo "2065"]
[BlackElo "1949"]
[Annotator "TA"]
[PlyCount "94"]
[EventDate "2024.08.22"]
[EventType "swiss"]
[EventCountry "GER"]
[SourceTitle "playchess.com"]
[Source "ChessBase"]
[SourceQuality "1"]
[TimeControl "40/5400+30:1800+30"]

{[%evp 9,94,57,78,40,52,39,47,49,55,40,72,42,83,55,66,70,86,59,69,50,126,131,122,111,216,160,253,212,216,214,228,181,161,148,136,135,119,121,134,84,181,176,263,265,266,222,212,183,197,195,258,252,255,264,264,260,310,315,378,383,466,369,364,325,415,317,493,310,353,328,414,381,489,491,454,214,552,535,666,66,29991,214,29990,-527,29986,-128,-128]} 1. d4 {[%emt 0:00:12]} e6 {[%emt 0:00:03]} 2. Nf3 {[%emt 0:00:39]} d6 {[%emt 0:00:04]} 3. g3 {[%emt 0:01:08]} Nd7 {[%emt 0:00:06]} 4. Bg2 {[%emt 0:02:29]} h6 {[%emt 0:00:58]} 5. c4 {[%emt 0:03:16]} g5 {[%emt 0:00:09]} 6. h3 {[%emt 0:11:24]} Bg7 {[%emt 0:00:10]} 7. e4 {[%emt 0:03:47]} Ne7 {[%emt 0:00:19]} 8. Nc3 {[%emt 0:03:03] White is slightly better.} a6 {[%emt 0:00:37]} 9. O-O {[%emt 0:04:41]} O-O {[%emt 0:01:15]} 10. b3 {[%emt 0:05:07]} f5 {[%emt 0:05:37]} 11. exf5 {[%emt 0:01:28]} exf5 {[%emt 0:00:04]} 12. Bb2 {[%emt 0:02:59]} Ng6 {[%emt 0:00:25]} 13. Qd2 {[%emt 0:08:05]} Nf6 {[%emt 0:03:08]} 14. Rae1 {[%emt 0:03:05]} g4 {[%emt 0:02:44]} (14... c6 $14) 15. hxg4 $16 {[%emt 0:04:09]} fxg4 {[%emt 0:01:27]} 16. Nh2 {[%emt 0:00:28] White is more active.} h5 {[%emt 0:00:29]} (16... c6 $16) 17. Ne4 {[%emt 0:09:21]} c6 {[%emt 0:03:52]} (17... Nh7 $16 {is a better defense.} 18. f3 gxf3 19. Nxf3 (19. Bxf3 Bf5 $16) (19. Rxf3 Bf5 $14) 19... Bg4) 18. d5 {[%emt 0:04:43]} Nxe4 {[%emt 0:08:03]} 19. Bxe4 {[%emt 0:00:21]} (19. Rxe4 $6 c5 $14) 19... Ne5 {[%emt 0:00:10]} 20. dxc6 {[%emt 0:01:38]} bxc6 21. Bxe5 {[%emt 0:05:33]} dxe5 {[%emt 0:03:38]} 22. Qxd8 {[%emt 0:01:53]} Rxd8 {[%emt 0:00:01]} 23. Bxc6 {[%emt 0:00:12]} Rb8 {[%emt 0:00:22]} 24. Rd1 {[%emt 0:04:42]} (24. Bd5+ $142 Kh7 25. Rd1) 24... Rxd1 {[%emt 0:00:31]} (24... Be6 $16 {was worth a try.}) 25. Rxd1 $18 {[%emt 0:00:08] [#] aiming for Rd8+.} Bb7 {[%emt 0:00:08]} (25... Bf5 $142 26. Bd7 Be4 (26... Rd8 $2 27. Be6+ Bxe6 28. Rxd8+ $18)) 26. Bxb7 {[%emt 0:03:45]} Rxb7 {[%emt 0:00:01][%mdl 4096] Endgame. KRB-KRN} 27. Rd5 {[%emt 0:00:32]} Kf7 {[%emt 0:04:49]} 28. Kf1 {[%emt 0:03:57]} Ke6 {[%emt 0:00:25]} 29. Ke2 {[%emt 0:01:03]} Bh6 {[%emt 0:02:22]} (29... Bf6 $142 30. Nf1 Rd7) 30. f3 {[%emt 0:03:00]} Kf5 {[%emt 0:00:10]} 31. fxg4+ {[%emt 0:01:11]} hxg4 {[%emt 0:00:08]} 32. Rd6 {[%emt 0:02:09][%csl LRa6,LRh6]} Bc1 {[%emt 0:00:22]} 33. Rxa6 {[%emt 0:00:30]} Rd7 {[%emt 0:00:30]} 34. Nf1 {[%emt 0:00:30] Inhibits Rd2+.} Ke4 {[%emt 0:00:36]} 35. Ra5 {[%emt 0:02:18]} Rc7 {[%emt 0:00:33]} 36. Ra8 {[%emt 0:01:58]} (36. Nd2+ Bxd2 37. Kxd2 Rh7 $16) 36... Rd7 {[%emt 0:01:28]} 37. Ra4 {[%emt 0:01:16] Black must now prevent c5+.} Kd4 {[%emt 0:00:24]} (37... Rc7 {was necessary.} 38. Nh2 Kf5) 38. Ra5 {[%emt 0:01:28]} Re7 {[%emt 0:00:28]} 39. Rd5+ {[%emt 0:00:38]} Ke4 {[%emt 0:00:01]} 40. Rd1 {[%emt 0:00:25]} (40. Nd2+ Kf5 41. c5 Ra7 $18) 40... Bg5 {[%emt 0:00:12]} 41. c5 {[%emt 0:02:14]} (41. Nd2+ Kf5 42. Rf1+ Ke6) 41... Ra7 {[%emt 0:00:29]} 42. a4 {[%emt 0:03:18]} (42. Nd2+ $142 Kd5 43. Nf3+ Kxc5 44. Nxg5 Rxa2+ 45. Rd2) 42... Rb7 $2 {[%emt 0:00:06]} (42... Ra5 43. c6 Rc5) 43. Rd3 {[%emt 0:00:41]} Kf5 {[%emt 0:00:22]} 44. Rd6 $2 {[%emt 0:00:00]} (44. Ne3+ $18 Ke4 45. Nc4 (45. Nxg4 Rb8 $18)) 44... Rb6 $2 {[%emt 0:09:31][%mdl 8192]} 45. Kd3 $2 {[%emt 0:11:20]} (45. cxb6 Be7 46. Ne3+ Kg5 47. Rc6 Bc5 48. Rxc5 Kg6 49. Rc6+ (49. Nxg4 Kh5 50. Rxe5+ Kg6 51. b7 Kf7 52. b8=Q Kg7 53. Qe8 Kh7 54. Re7#) (49. b7 Kh6 50. Rc6+ Kh7 51. b8=Q e4 52. Qa7+ Kh8 53. Rc8#) 49... Kg7 50. b7 (50. Nxg4 Kh7 51. b7 Kg7 52. b8=Q e4 53. Qb7+ Kh8 54. Rc8#) 50... Kh7 51. b8=Q (51. b8=R e4 52. Rb7+ Kh8 53. Rc8#) 51... e4 52. Qa7+ Kh8 53. Rc8#) 45... Bd8 $2 {[%emt 0:00:20]} (45... Rxb3+ $18 46. Kc4 Rb1) 46. Re6 $4 {[%emt 0:01:30][%mdl 8192]} (46. Ne3+ {avoids the disaster.} Kg5 47. cxb6 Be7 48. Rd5 Kh5 49. b7 (49. Rxe5+ Kh6 50. Rxe7 Kg6 51. b7 Kf6 52. Nd5+ Kg5 53. b8=Q Kh5 54. Rg7 Kh6 55. Qh8#) 49... Kg6 50. b8=Q (50. b8=R Kf6 51. Rb6+ Kf7 52. Nxg4 Kg8 53. Rd7 e4+ 54. Kxe4 Kf7 55. Rbb7 Kg8 56. Rxe7 Kf8 57. Ke5 Kg8 58. Re8#) 50... Kh7 51. Qxe5 (51. Nxg4 Kg7 52. Qxe5+ Kf7 53. Nh6+ Kg6 54. Qe6+ Bf6 55. Qf7+ Kxh6 56. Rh5#)) 46... Bc7 $4 {[%emt 0:00:00][%mdl 8192] [#]} (46... Rxe6 $19 47. Ne3+ Kg5) 47. b4 $2 {[%emt 0:00:00]} Rxe6 {[%emt 1:11:14][%mdl 32768] Weighted Error Value: White=0.94/Black=0.94.  Loses game:     	---       	Black=1      Missed win:     	White=1     	Black=1      Mistake:       	White=2     	Black=9      Inaccurate:     	White=3     	Black=2      OK:         	White=14    	Black=8      Best:        	White=1     	Black=1     . Loss on time!?} 1-0